bitfinex/quotes_ETHUSD_20251018
["timestamp","ask_amount","ask_price","bid_price","bid_amount"]
[1760801471982,0.04493419,3878.9,3878.8,3.02841694]
[1760801472956,0.04493419,3878.9,3878.8,0.4503]
[1760801475362,0.04493419,3878.9,3878.8,3.02841694]
[1760801476761,0.04493419,3878.9,3878.8,0.4503]
[1760801477182,0.04493419,3878.9,3878.5,0.4561]
[1760801477393,0.04493419,3878.9,3878.7,0.4503]
[1760801478070,0.04493419,3878.9,3878.5,0.4561]
[1760801478271,0.6336,3878.6,3878.5,0.4561]
[1760801479883,0.6336,3878.6,3878.5,0.9064]
[1760801480700,0.6336,3878.6,3878.5,0.4561]
[1760801481774,0.7339,3878.6,3878.5,0.4561]
[1760801481991,0.6336,3878.6,3878.5,0.4561]
[1760801484096,0.6336,3878.6,3878.5,0.9064]
[1760801484495,0.6336,3878.6,3878.5,0.4561]
[1760801486583,0.6336,3878.7,3878.5,0.9064]
[1760801487285,0.6336,3878.7,3878.5,0.4561]
[1760801488208,0.6336,3878.7,3878.6,0.4503]
[1760801488410,0.6336,3878.7,3878.5,0.4561]
[1760801488970,0.002,3878.9,3878.6,0.4503]
[1760801489175,0.1288,3878.7,3878.6,0.4503]
[1760801489677,0.002,3878.9,3878.8,2.57811694]
[1760801490086,0.002,3878.9,3878.8,3.02841694]
[1760801490285,0.002,3878.9,3878.8,3.66047184]
[1760801492372,0.002,3878.9,3878.8,1.0823549]
[1760801492771,0.002,3878.9,3878.8,3.66047184]
[1760801493577,0.002,3878.9,3878.8,1.05657374]
[1760801494678,0.002,3878.9,3878.8,0.4503]
[1760801495621,0.002,3878.9,3878.5,0.4561]
[1760801497123,0.6336,3878.7,3878.5,0.4561]
[1760801497418,0.7326,3878.7,3878.5,0.4561]
[1760801497821,0.6336,3878.7,3878.5,0.4561]
[1760801500997,2.57813951,3878.8,3878.5,0.4561]
[1760801500998,8.29693379,3878.6,3878.5,0.4561]
[1760801501499,5.71868391,3878.6,3878.5,0.4561]
[1760801501900,5.61968391,3878.6,3878.5,0.4561]
[1760801502119,8.19793379,3878.6,3878.5,0.4561]
[1760801502324,5.71868391,3878.6,3878.5,0.4561]
[1760801502628,8.29693379,3878.6,3878.5,0.4561]
[1760801504005,10.42936996,3878.6,3878.5,0.4561]
[1760801504206,20.95446496,3878.6,3878.5,0.4111704]
[1760801504522,18.93465496,3878.6,3878.5,0.4111704]
[1760801505230,21.71805896,3878.6,3878.5,0.4111704]
[1760801505433,14.47361819,3878.6,3878.5,0.4111704]
[1760801506306,9.60121819,3878.6,3878.5,0.4111704]
[1760801506558,17.30354619,3878.6,3878.5,0.4111704]
[1760801507429,16.01911059,3878.6,3878.5,0.4111704]
[1760801507632,6.96891571,3878.6,3878.5,0.4111704]
[1760801507835,9.29742271,3878.6,3878.5,0.4111704]
[1760801508422,6.96891571,3878.6,3878.5,0.4111704]
[1760801508742,11.27217271,3878.6,3878.5,0.4111704]
[1760801509322,13.94942259,3878.6,3878.5,0.4111704]
[1760801509523,18.83304859,3878.6,3878.5,0.4111704]
[1760801510039,17.55847759,3878.6,3878.5,0.4111704]
[1760801510237,21.71640973,3878.6,3878.5,0.4111704]
[1760801510439,19.90875673,3878.6,3878.5,0.4111704]
[1760801510645,15.75699759,3878.6,3878.5,0.4111704]
[1760801511143,15.85599759,3878.6,3878.5,0.4111704]
[1760801511307,19.91492973,3878.6,3878.5,0.4111704]
[1760801511512,4.94051479,3877.6,3877.5,0.6]
[1760801511713,15.54237907,3877.6,3877.5,0.6]
[1760801511944,15.64137907,3877.6,3877.5,0.6]
[1760801512634,36.33769685,3877.6,3877.5,0.6]
[1760801512829,26.34823307,3877.6,3877.5,0.6]
[1760801513031,21.90162993,3877.6,3877.5,0.6]
[1760801513433,29.73253693,3877.6,3877.5,0.6]
[1760801513616,31.36356593,3877.6,3877.5,0.6]
[1760801513942,24.59005193,3877.6,3877.5,0.6]
[1760801514516,27.35489275,3877.6,3877.5,0.6]
[1760801514847,2.76618461,3877.6,3877.5,0.6]
[1760801515039,2.3616,3877.6,3877.5,0.6]
[1760801515233,2.3616,3877.6,3877.5,1.058]
[1760801515414,5.021499,3878.3,3877.5,1.013053]
[1760801515615,0.1288,3877.6,3877.5,0.556053]
[1760801515820,12.16046985,3878.5,3877.5,0.556053]
[1760801515821,2.3616,3878.3,3877.5,0.556053]
[1760801516019,0.6336,3878.3,3877.5,0.556053]
[1760801516319,1.728,3878.4,3877.6,0.458]
[1760801517017,0.6336,3878.3,3877.6,0.458]
[1760801517876,0.40448634,3878.2,3877.6,0.458]
[1760801518432,0.6336,3878.1,3877.6,0.81730559]
[1760801518626,0.6336,3878.1,3877.7,0.458]
[1760801518961,0.40448634,3878.2,3877.8,0.458]
[1760801519165,0.40448634,3878.2,3877.9,0.458]
[1760801519360,0.40448634,3878.2,3877.5,0.556053]
[1760801519563,0.40448634,3878.2,3878.0,0.458]
[1760801520261,0.40448634,3878.2,3878.1,0.6831]
[1760801520976,0.40448634,3878.2,3878.1,0.2251]
[1760801522162,0.6336,3878.1,3877.5,0.556053]
[1760801522536,0.6336,3878.1,3877.6,0.458]
[1760801523168,0.6336,3878.1,3877.7,0.458]
[1760801523367,0.6336,3878.1,3877.8,0.458]
[1760801523575,0.6336,3878.1,3877.5,0.556053]
[1760801523735,0.6336,3878.1,3877.9,0.458]
[1760801523932,0.6336,3878.1,3878.0,0.458]
[1760801524452,0.6336,3878.1,3877.6,0.4422]
[1760801524835,0.6336,3878.1,3877.7,0.4422]
[1760801525032,0.6336,3878.1,3877.5,0.556053]
[1760801525564,0.6336,3878.1,3877.6,0.4422]
[1760801525759,0.1288,3877.8,3877.5,0.556053]
[1760801526077,0.1288,3877.8,3877.6,0.4422]
[1760801526478,0.7624,3877.8,3877.7,0.4391]
[1760801526779,0.6336,3877.8,3877.5,0.556053]
[1760801526979,0.7326,3877.8,3877.5,0.556053]
[1760801527276,3.31139535,3877.8,3877.5,0.556053]
[1760801527567,8.134115,3877.6,3877.5,0.556053]
[1760801527760,14.524115,3877.6,3877.5,0.556053]
[1760801527930,17.10302979,3877.6,3877.5,0.556053]
[1760801528135,32.93707132,3877.6,3877.5,0.556053]
[1760801528473,32.44709732,3877.6,3877.5,0.556053]
[1760801528639,29.67291532,3877.6,3877.5,0.556053]
[1760801528962,27.08578432,3877.6,3877.5,0.556053]
[1760801529263,8.7516,3877.6,3877.5,0.556053]
[1760801529561,13.533122,3877.6,3877.5,0.556053]
[1760801529766,13.93767474,3877.6,3877.5,0.556053]
[1760801530166,27.19507153,3877.6,3877.5,0.556053]
[1760801530367,24.88150553,3877.6,3877.5,0.556053]
[1760801530534,18.85400453,3877.6,3877.5,0.556053]
[1760801531255,16.56322853,3877.6,3877.5,0.556053]
[1760801531432,13.70181374,3877.6,3877.5,0.556053]
[1760801531635,12.72824374,3877.6,3877.5,0.556053]
[1760801532069,11.73506753,3877.6,3877.5,0.556053]
[1760801532262,14.22822074,3877.6,3877.5,0.556053]
[1760801532457,11.20285574,3877.6,3877.5,0.556053]
[1760801532773,10.798303,3877.6,3877.5,0.556053]
[1760801532995,13.37721779,3877.6,3877.5,0.556053]
[1760801533297,19.05052679,3877.6,3877.5,0.556053]
[1760801533470,19.14952679,3877.6,3877.5,0.556053]
[1760801533668,3.21278085,3877.2,3877.1,0.001]
[1760801533872,3.21278085,3877.2,3876.8,0.6]
[1760801533873,38.98834457,3876.9,3876.8,0.6]
[1760801534061,26.31031914,3876.9,3876.8,0.6]
[1760801534391,25.65125214,3876.9,3876.8,0.6]
[1760801534593,2.3616,3876.9,3876.8,0.6]
[1760801534891,2.3616,3876.9,3876.8,1.0391]
[1760801536400,0.40459328,3877.0,3876.8,1.0391]
[1760801536696,1.03819328,3877.0,3876.9,0.4391]
[1760801537492,0.40459328,3877.0,3876.9,0.4391]
[1760801545407,0.40459328,3877.0,3876.8,0.6]
[1760801545612,0.40459328,3877.0,3876.8,1.0391]
[1760801545815,0.40459328,3877.0,3876.9,0.4391]
[1760801546883,1.03819328,3877.0,3876.8,0.6]
[1760801551132,0.6336,3876.9,3876.8,0.6]
[1760801551297,0.8481,3876.9,3876.8,0.6]
[1760801551497,4.91089399,3876.9,3876.8,0.6]
[1760801552228,4.91089399,3876.9,3876.8,0.601]
[1760801552799,5.00989399,3876.9,3876.8,0.601]
[1760801553132,4.91089399,3876.9,3876.8,0.601]
[1760801553638,8.33148399,3876.9,3876.8,0.601]
[1760801554333,15.96552499,3876.9,3876.8,0.601]
[1760801554532,6.73789399,3876.9,3876.8,0.601]
[1760801555139,9.59441899,3876.9,3876.8,0.601]
[1760801555505,9.29994399,3876.9,3876.8,0.601]
[1760801555836,6.52339399,3876.9,3876.8,0.601]
[1760801557041,6.63859399,3876.9,3876.8,0.601]
[1760801557915,6.52339399,3876.9,3876.8,0.601]
[1760801558357,6.52339399,3876.9,3876.8,1.0626]
[1760801558733,0.002,3877.1,3876.8,1.0626]
[1760801558931,0.1288,3876.9,3876.8,0.601]
[1760801559533,0.1288,3876.9,3876.8,1.0626]
[1760801560751,4.29059399,3876.9,3876.8,1.0626]
[1760801561519,4.29059399,3876.9,3876.8,0.601]
[1760801561520,4.92419399,3876.9,3876.8,0.601]
[1760801562266,5.32878779,3876.9,3876.8,0.601]
[1760801563371,5.32878779,3876.9,3876.8,0.5560535]
[1760801564046,5.37374752,3876.9,3876.8,1.0176535]
[1760801565439,1.21195353,3876.9,3876.8,1.0176535]
[1760801565956,1.21195353,3876.9,3876.8,0.5560535]
[1760801567167,1.21195353,3876.9,3876.8,1.0176535]
[1760801568338,1.21195353,3876.9,3876.8,0.4626]
[1760801571288,1.21195353,3876.9,3876.8,0.001]
[1760801575458,1.32695353,3876.9,3876.8,0.001]
[1760801575705,1.71237906,3876.9,3876.8,0.001]
[1760801576067,1.59737906,3876.9,3876.8,0.001]
[1760801576760,1.21195353,3876.9,3876.8,0.4626]
[1760801577274,0.80735973,3876.9,3876.8,0.4626]
[1760801579965,0.80735973,3876.9,3876.8,0.001]
[1760801580161,0.92205973,3876.9,3876.8,0.001]
[1760801580366,1.02185973,3876.9,3876.8,0.001]
[1760801580781,9.13985973,3876.9,3876.8,0.001]
[1760801583885,12.78746573,3876.9,3876.8,0.001]
[1760801584091,11.96744973,3876.9,3876.8,0.001]
[1760801585103,18.24780373,3876.9,3876.8,0.001]
[1760801585272,17.30353273,3876.9,3876.8,0.001]
[1760801585473,13.71085173,3876.9,3876.8,0.001]
[1760801585678,12.40768573,3876.9,3876.8,0.001]
[1760801585988,9.13985973,3876.9,3876.8,0.001]
[1760801586187,2.53535973,3876.9,3876.8,0.001]
[1760801586389,2.65085973,3876.9,3876.8,0.001]
[1760801587768,1.77295973,3876.9,3876.8,0.001]
[1760801587969,1.77295973,3876.9,3876.8,0.4495]
[1760801588166,14.833093,3876.8,3875.2,0.229]
[1760801588371,14.833093,3876.8,3875.2,0.6775]
[1760801588372,0.6336,3875.5,3875.2,0.6775]
[1760801588583,0.6336,3875.5,3875.3,0.4485]
[1760801589085,0.6336,3875.5,3875.4,0.4485]
[1760801589492,0.6336,3875.5,3875.2,0.229]
[1760801589703,0.6336,3875.5,3875.2,0.6775]
[1760801590092,0.6336,3875.5,3874.9,0.6736]
[1760801590281,0.6336,3875.5,3873.8,0.2297]
[1760801590282,0.6336,3875.1,3873.8,0.2297]
[1760801590480,4.460941,3874.8,3873.9,0.004]
[1760801590694,4.99225519,3874.0,3873.1,0.229]
[1760801591023,4.99225519,3874.3,3873.1,0.25481911]
[1760801591321,0.6336,3874.2,3873.6,2.58156452]
[1760801591471,0.6336,3874.7,3874.1,0.229]
[1760801591872,0.6336,3874.7,3874.2,0.4485]
[1760801592091,0.40486583,3874.8,3874.5,2.58092631]
[1760801592373,0.201,3875.6,3874.6,0.4485]
[1760801592568,0.40480339,3875.3,3874.6,0.4485]
[1760801592775,0.201,3875.6,3874.6,0.4485]
[1760801592776,0.6336,3875.5,3874.6,0.4485]
[1760801593294,2.3616,3875.1,3874.1,0.229]
[1760801593881,5.197233,3874.8,3874.1,0.229]
[1760801594287,0.6336,3874.6,3873.9,0.4485]
[1760801594511,0.6336,3874.6,3873.6,0.4485]
[1760801595215,0.6336,3874.6,3873.6,3.03005508]
[1760801595917,0.6336,3874.6,3873.7,2.58149618]
[1760801596086,0.6336,3874.6,3873.8,0.4485]
[1760801596294,0.6336,3874.6,3874.0,2.58126588]
[1760801596517,0.6336,3874.6,3874.1,0.6775]
[1760801596694,0.6336,3874.6,3874.2,0.4485]
[1760801596904,0.6336,3874.6,3874.2,0.3137]
[1760801597226,0.6336,3874.6,3874.1,0.229]
[1760801597227,0.6336,3874.6,3874.1,2.81021744]
[1760801597423,0.6336,3874.6,3874.1,0.229]
[1760801597921,0.1288,3874.4,3873.7,2.71029378]
[1760801598121,0.1288,3874.4,3873.7,0.1288]
[1760801598290,0.1288,3874.4,3874.1,2.58123712]
[1760801598621,0.1288,3874.4,3874.1,0.229]
[1760801599000,0.1288,3874.4,3874.2,0.4485]
[1760801600431,0.1288,3874.4,3874.1,0.229]
[1760801600629,0.1288,3874.4,3874.1,0.6775]
[1760801601124,0.6336,3874.3,3873.7,0.5773]
[1760801601315,0.1288,3874.1,3873.7,0.4485]
[1760801601494,0.1288,3874.1,3873.7,3.0299927]
[1760801601819,0.1288,3874.1,3873.8,3.02993999]
[1760801602019,0.1288,3874.1,3873.9,0.4485]
[1760801604405,0.6336,3874.0,3873.5,0.5773]
[1760801604609,0.6336,3874.0,3873.1,0.6775]
[1760801604800,0.6336,3873.4,3873.1,0.229]
[1760801605692,1.728,3874.5,3873.2,0.4485]
[1760801605898,0.1288,3873.6,3873.5,2.5816445]
[1760801606131,0.1288,3873.6,3873.5,3.0301445]
[1760801606328,0.40491022,3874.2,3874.1,2.58124467]
[1760801606529,0.53371022,3874.2,3874.1,3.25874467]
[1760801606697,0.1288,3874.2,3874.1,3.25874467]
[1760801607404,0.1288,3874.2,3874.1,0.229]
[1760801607607,0.1288,3874.2,3874.1,0.6775]
[1760801607791,0.1288,3874.2,3874.1,3.25874467]
[1760801608219,0.1288,3874.2,3874.1,0.6775]
[1760801609625,0.1288,3874.2,3874.1,3.25874467]
[1760801610135,0.1288,3874.2,3874.1,0.6775]
[1760801611229,0.1288,3874.2,3874.1,0.229]
[1760801611774,0.6336,3874.1,3873.9,0.001]
[1760801612248,0.6336,3874.7,3873.9,3.03087349]
[1760801612421,0.6336,3874.7,3873.9,0.4495]
[1760801612622,0.6336,3874.5,3873.9,0.4495]
[1760801613323,0.6336,3874.5,3873.9,0.001]
[1760801614455,0.734,3874.5,3873.9,0.001]
[1760801615849,0.6336,3874.5,3873.9,0.001]
[1760801616046,0.1288,3874.2,3873.9,0.001]
[1760801616249,0.6336,3874.1,3873.9,2.58237423]
[1760801616463,0.6336,3874.1,3874.0,0.4471]
[1760801616753,0.6336,3874.1,3873.9,0.4481]
[1760801616953,0.6336,3874.1,3873.9,0.001]
[1760801618362,0.6336,3874.1,3874.0,3.0284113]
[1760801620052,0.40485916,3874.5,3874.0,0.4471]
[1760801620355,0.40485916,3874.5,3873.9,0.001]
[1760801620726,0.40485916,3874.5,3873.9,2.58233576]
[1760801620934,0.40485916,3874.5,3873.9,0.001]
[1760801621355,0.6336,3874.4,3873.9,0.001]
[1760801621652,0.734,3874.4,3873.9,0.001]
[1760801621855,0.1004,3874.3,3873.9,0.001]
[1760801622052,0.6336,3874.4,3873.9,0.001]
[1760801622253,0.6336,3874.4,3873.9,2.5823333]
[1760801623079,0.6336,3874.4,3873.9,0.001]
[1760801623233,0.6336,3874.4,3874.0,0.4471]
[1760801623560,0.6336,3874.8,3874.1,0.6625]
[1760801623861,0.6336,3874.8,3874.2,2.58117339]
[1760801624261,0.6336,3874.8,3874.1,0.6625]
[1760801624431,0.6336,3874.8,3874.2,2.58117804]
[1760801624627,0.6336,3874.8,3874.3,2.5810927]
[1760801624859,0.6336,3874.8,3874.4,2.581044]
[1760801625743,0.6336,3874.8,3874.3,0.4471]
[1760801625937,0.6336,3874.8,3874.1,0.2154]
[1760801626144,0.734,3874.8,3874.1,0.2154]
[1760801626341,0.734,3874.8,3874.2,2.58116556]
[1760801627233,0.6336,3874.8,3874.3,2.58107537]
[1760801627434,0.6336,3874.8,3874.2,2.58116206]
[1760801627654,0.6336,3874.6,3874.2,2.58116206]
[1760801627850,0.002,3874.5,3874.2,3.02826206]
[1760801628939,0.002,3874.5,3874.0,2.58130043]
[1760801629662,0.002,3874.5,3874.2,2.58117804]
[1760801629864,0.002,3874.5,3874.3,0.4471]
[1760801630065,0.6336,3874.4,3874.3,0.4471]
[1760801631069,0.6336,3874.4,3874.1,2.79662956]
[1760801631564,0.6336,3874.4,3874.1,3.24372956]
[1760801631761,0.6336,3874.4,3874.1,0.6625]
[1760801631966,0.6336,3874.4,3874.1,3.24373589]
[1760801632471,0.6336,3874.4,3874.0,2.58130125]
[1760801632671,0.002,3874.5,3874.0,2.58130909]
[1760801632871,0.7624,3874.1,3874.0,2.58130909]
[1760801633076,0.002,3874.5,3874.2,2.58117125]
[1760801633276,0.002,3874.5,3874.1,2.79663465]
[1760801633465,0.6336,3874.2,3874.1,3.24373465]
[1760801634448,0.002,3874.5,3874.4,2.5810448]
[1760801634947,4.16781273,3874.5,3874.2,0.4471]
[1760801635275,4.16781273,3874.5,3874.2,3.02825818]
[1760801635576,4.16781273,3874.5,3874.1,2.79663808]
[1760801635774,4.16781273,3874.5,3874.3,2.58110348]
[1760801636281,4.16781273,3874.5,3874.4,2.5810448]
[1760801636649,4.16781273,3874.5,3874.2,2.58113028]
[1760801637480,4.16781273,3874.5,3873.9,0.4481]
[1760801637481,0.6336,3874.4,3873.9,0.4481]
[1760801637669,4.16581273,3874.2,3873.9,0.4481]
[1760801637869,4.16581273,3874.2,3874.0,2.58126474]
[1760801638178,4.16581273,3874.2,3874.0,2.58129834]
[1760801640385,0.6336,3874.1,3873.9,0.001]
[1760801641687,0.7346,3874.0,3873.9,0.001]
[1760801641867,0.6336,3874.0,3873.9,0.001]
[1760801642070,6.39,3874.1,3874.0,2.5813113]
[1760801642386,6.39,3874.1,3874.0,3.33135243]
[1760801642587,0.002,3874.5,3874.4,2.5810448]
[1760801642970,0.002,3874.5,3874.4,3.0281448]
[1760801646578,0.002,3874.5,3874.3,0.3442]
[1760801646775,0.002,3874.5,3874.4,2.5810448]
[1760801647600,0.002,3874.5,3874.4,3.0099448]
[1760801647806,0.002,3874.5,3874.4,3.60347201]
[1760801649376,0.002,3874.5,3874.4,3.62928245]
[1760801649592,0.002,3874.5,3874.4,5.35728245]
[1760801649894,0.002,3874.5,3874.4,5.33147201]
[1760801651128,0.002,3874.5,3873.9,5.1973182]
[1760801651129,30.0,3874.3,3873.9,0.77704102]
[1760801651417,0.6336,3873.7,3872.3,0.4289]
[1760801651699,4.16581273,3873.0,3872.3,0.4289]
[1760801651883,0.6336,3873.6,3872.1,0.2148]
[1760801652198,0.67860121,3873.6,3872.9,1.0289]
[1760801652382,0.04500121,3873.6,3872.9,1.39000625]
[1760801652563,0.04500121,3873.6,3873.3,2.58177291]
[1760801652764,0.04500121,3873.6,3873.5,0.2148]
[1760801652994,0.04500121,3873.6,3873.5,3.2253445]
[1760801653496,0.04500121,3873.6,3873.5,0.6437]
[1760801655596,0.002,3874.5,3873.7,2.58151121]
[1760801655797,0.002,3874.5,3873.5,3.22534383]
[1760801655798,0.04499152,3874.1,3873.8,3.01031532]
[1760801655984,0.04499152,3874.1,3873.9,0.4289]
[1760801656168,0.6356,3874.5,3873.9,0.4289]
[1760801656571,0.002,3874.5,3873.9,3.01026305]
[1760801656909,0.002,3874.5,3874.1,2.58119339]
[1760801657273,0.002,3874.5,3874.2,3.22487097]
[1760801657469,0.002,3874.5,3874.3,2.58110417]
[1760801657686,0.002,3874.5,3874.3,3.01000417]
[1760801658083,0.002,3874.5,3874.4,0.4289]
[1760801658286,0.002,3874.5,3874.2,3.22487247]
[1760801658489,0.002,3874.5,3874.3,0.61071895]
[1760801659889,0.002,3874.5,3874.3,3.19182975]
[1760801660405,0.002,3874.5,3874.3,0.61071895]
[1760801660573,0.002,3874.5,3874.4,0.4289]
[1760801661006,0.002,3874.5,3874.4,0.5577]
[1760801662001,0.002,3874.5,3874.4,3.1387448]
[1760801662204,0.002,3874.5,3874.4,5.13437687]
[1760801665614,0.002,3874.5,3874.3,1.728]
[1760801665789,0.002,3874.5,3874.4,2.5810448]
[1760801666190,0.002,3874.5,3874.4,3.0099448]
[1760801666910,0.002,3874.5,3874.4,3.03575524]
[1760801667120,0.002,3874.5,3874.4,3.0099448]
[1760801667316,0.002,3874.5,3874.4,3.59053599]
[1760801667621,0.002,3874.5,3874.4,5.31853599]
[1760801672217,0.002,3874.5,3874.4,5.44733599]
[1760801675820,0.002,3874.5,3874.4,5.01843599]
[1760801676024,0.002,3874.5,3874.4,4.4378448]
[1760801680024,0.002,3874.5,3874.4,4.9072448]
[1760801680325,0.002,3874.5,3874.4,4.93305524]
[1760801681707,0.002,3874.5,3874.4,4.9072448]
[1760801685158,0.002,3874.5,3874.4,4.93305524]
[1760801685648,0.002,3874.5,3874.4,5.97015748]
[1760801685846,0.002,3874.5,3874.4,5.94434704]
[1760801686719,0.002,3874.5,3874.4,8.58434704]
[1760801688323,0.2,3875.9,3875.8,2.58011249]
[1760801688647,0.099,3876.2,3876.1,2.57991279]
[1760801689938,0.099,3876.2,3875.8,0.1288]
[1760801689939,0.1288,3876.4,3876.0,2.57997669]
[1760801690140,0.1288,3876.6,3876.3,2.57973334]
[1760801690457,0.1,3876.5,3876.3,2.57977814]
[1760801690623,0.65077761,3876.9,3876.3,2.57977814]
[1760801690958,0.1,3876.4,3876.3,2.57977814]
[1760801692370,0.1,3876.4,3876.2,0.1288]
[1760801692542,0.65077761,3876.9,3876.2,0.1288]
[1760801692744,0.1,3876.3,3876.2,0.1288]
[1760801692944,0.1,3876.3,3876.2,2.70864624]
[1760801693864,0.1,3876.3,3875.8,2.58006281]
[1760801694064,0.297,3876.2,3876.0,2.57997535]
[1760801694223,0.1288,3876.4,3875.8,0.1288]
[1760801694428,0.1288,3876.4,3876.2,2.57980158]
[1760801694839,0.099,3876.3,3876.2,2.57980158]
[1760801695042,0.1288,3876.4,3876.3,2.57977968]
[1760801696163,0.099,3876.4,3876.2,2.70862033]
[1760801696377,0.099,3876.8,3876.2,2.70862033]
[1760801696580,0.2461,3876.9,3875.5,2.58026248]
[1760801696581,0.7326,3876.7,3875.8,2.58006288]
[1760801696730,0.199,3875.9,3875.8,2.58006288]
[1760801698302,0.7346,3876.8,3875.1,0.2339]
[1760801698497,0.7346,3876.8,3876.4,2.57966454]
[1760801698683,0.101,3876.8,3876.6,2.57957743]
[1760801698883,0.101,3876.8,3876.0,2.57997936]
[1760801699085,0.1173,3876.9,3876.6,2.57956418]
[1760801699673,0.2183,3876.9,3876.6,2.57956418]
[1760801700305,0.1173,3876.9,3876.5,2.57964436]
[1760801700488,0.1173,3876.9,3876.8,2.57944696]
[1760801700701,0.1173,3876.9,3875.9,0.2339]
[1760801700997,0.101,3876.8,3875.6,3.04963512]
[1760801701298,0.101,3876.7,3875.8,2.58011249]
[1760801701498,0.1173,3876.9,3876.7,2.5794688]
[1760801701938,0.1173,3876.9,3876.8,2.57944696]
[1760801702076,0.002,3876.9,3876.8,2.57944696]
[1760801704579,0.1171,3876.9,3876.1,0.4483]
[1760801704895,0.6336,3876.8,3875.8,1.728]
[1760801705101,0.6336,3876.6,3876.1,2.57988349]
[1760801705483,0.1171,3876.9,3876.1,0.2189]
[1760801705484,0.6336,3876.8,3876.1,0.2189]
[1760801705684,0.6336,3876.8,3876.5,2.57964286]
[1760801705884,0.6336,3876.8,3876.4,2.57968864]
[1760801706092,0.1013,3876.7,3876.4,2.57968864]
[1760801706286,0.1013,3876.7,3876.2,2.57984239]
[1760801706599,0.1013,3876.6,3876.3,2.57975708]
[1760801706907,0.7624,3876.8,3876.2,0.1288]
[1760801707099,0.1013,3876.5,3876.2,0.1288]
[1760801707412,0.1013,3876.4,3876.2,0.1288]
[1760801707617,0.1013,3876.4,3875.2,2.18779]
[1760801707783,0.2301,3876.3,3875.7,2.70892888]
[1760801708111,0.2301,3876.3,3875.8,2.58010328]
[1760801708510,0.1013,3876.2,3875.7,0.1288]
[1760801708705,0.1013,3876.2,3875.8,2.58011172]
[1760801709107,0.1288,3876.3,3875.7,0.1288]
[1760801709720,0.1288,3876.3,3875.9,2.57999279]
[1760801710413,0.1288,3876.3,3875.7,0.1288]
[1760801710595,0.1971,3875.8,3875.7,2.70897906]
[1760801714231,0.6336,3876.2,3875.8,2.58011249]
[1760801715442,0.6336,3876.2,3875.9,2.58003532]
[1760801715609,1.73,3877.1,3876.0,0.4564]
[1760801715935,0.1288,3876.5,3876.2,2.57982323]
[1760801716094,0.1288,3876.5,3876.2,3.03622323]
[1760801716298,0.1288,3876.5,3876.3,2.57975048]
[1760801716894,0.1288,3876.5,3876.3,0.4564]
[1760801717098,0.1288,3876.5,3876.3,3.03617102]
[1760801717723,0.1288,3876.5,3876.1,0.2273]
[1760801717927,0.1288,3876.5,3876.0,2.57996389]
[1760801718235,0.099,3876.4,3875.9,2.70884075]
[1760801719020,0.6336,3876.3,3875.9,0.1288]
[1760801719302,0.1288,3876.2,3875.8,2.58006815]
[1760801719530,0.1288,3876.2,3875.9,3.03643553]
[1760801719736,0.1288,3876.2,3875.9,2.58003553]
[1760801720035,0.1288,3876.2,3875.8,2.58008853]
[1760801720446,0.6336,3876.6,3874.8,3.03712313]
[1760801720643,0.1288,3876.0,3875.3,2.70922389]
[1760801721203,0.1288,3876.0,3875.4,2.58036742]
[1760801722502,0.1288,3876.0,3875.5,2.58030851]
[1760801723725,0.8339,3875.9,3875.3,0.1288]
[1760801723926,0.1288,3875.5,3874.9,0.1298]
[1760801724141,0.1288,3875.5,3874.9,2.71049391]
[1760801724348,0.6336,3875.4,3874.9,0.1298]
[1760801724653,0.099,3875.4,3874.9,0.001]
[1760801724858,0.1288,3875.2,3874.9,0.001]
[1760801725754,0.6336,3875.1,3874.9,0.001]
[1760801725914,0.7624,3875.0,3874.9,0.001]
[1760801726256,0.1288,3875.0,3874.9,2.58171176]
[1760801726555,0.1288,3875.0,3874.9,0.001]
[1760801728954,0.7624,3875.0,3874.9,0.001]
[1760801744726,0.1288,3875.0,3874.9,0.001]
[1760801744880,0.53358811,3875.3,3875.0,2.58059664]
[1760801745080,0.53358811,3875.3,3875.2,0.2266]
[1760801745313,0.1288,3875.3,3875.2,0.6994]
[1760801745617,0.1288,3875.3,3875.2,3.27991197]
[1760801745780,0.7624,3875.5,3875.2,3.27991197]
[1760801745977,0.7624,3875.5,3875.3,0.4728]
[1760801746183,0.7624,3875.5,3875.4,0.4728]
[1760801747298,0.7624,3875.5,3875.2,0.2266]
[1760801747737,0.7624,3875.5,3875.2,0.6994]
[1760801748138,0.7624,3875.5,3874.9,0.1298]
[1760801748508,0.7624,3875.5,3874.9,2.71051016]
[1760801750225,0.7624,3875.5,3875.0,2.58062658]
[1760801750747,0.7624,3875.5,3875.1,0.4728]
[1760801750908,0.7624,3875.5,3875.2,0.4728]
[1760801751108,0.7624,3875.5,3875.3,0.4728]
[1760801751714,0.7624,3875.5,3874.9,0.1298]
[1760801751921,0.7624,3875.5,3874.9,2.71050779]
[1760801752941,0.7624,3875.5,3875.0,2.58063368]
[1760801753238,0.7624,3875.5,3875.0,0.4728]
[1760801753536,0.7624,3875.5,3874.9,2.71046224]
[1760801753740,0.7624,3875.5,3875.0,3.05343973]
[1760801754046,0.7624,3875.5,3875.0,2.58063973]
[1760801754211,0.7624,3875.5,3875.1,2.58057582]
[1760801754402,0.7624,3875.5,3875.2,0.4728]
[1760801754848,0.7624,3875.5,3874.9,0.6026]
[1760801755033,0.7624,3875.5,3875.0,2.58059474]
[1760801755403,0.7624,3875.5,3875.1,0.4728]
[1760801755809,0.7624,3875.5,3875.1,3.05337348]
[1760801756041,0.7624,3875.5,3875.2,0.4728]
[1760801757219,0.7624,3875.5,3875.1,0.2266]
[1760801758123,0.7644,3875.5,3875.1,3.27997187]